bitfinex/quotes_ETHUSD_20250623
["timestamp","ask_amount","ask_price","bid_price","bid_amount"]
[1750675257991,0.6158,2252.4,2251.6,11.93408795]
[1750675258265,0.6158,2252.2,2251.9,1.334968]
[1750675258470,7.199,2252.1,2251.9,1.334968]
[1750675258670,1.849,2252.0,2251.9,1.334968]
[1750675261486,2.4648,2252.0,2251.9,1.334968]
[1750675261793,0.6158,2251.9,2250.9,7.85232853]
[1750675261974,11.34132357,2251.8,2251.3,1.334968]
[1750675262134,7.199,2251.7,2251.3,1.334968]
[1750675262333,0.6158,2251.5,2251.3,1.334968]
[1750675262677,1.90452349,2251.4,2250.8,0.43849938]
[1750675262834,7.87033508,2251.3,2250.5,7.87442853]
[1750675263041,7.87033508,2251.3,2250.9,1.335616]
[1750675263253,0.6158,2251.2,2250.9,1.335616]
[1750675263450,0.6158,2251.0,2250.3,7.05402853]
[1750675263678,0.6158,2250.8,2250.6,1.335848]
[1750675263878,0.6158,2250.8,2250.0,7.81372853]
[1750675263879,1.90454615,2250.7,2250.0,8.25280367]
[1750675264135,1.90454615,2250.7,2249.7,0.829]
[1750675264136,0.6158,2250.5,2249.7,0.829]
[1750675264236,0.6158,2250.5,2250.2,1.336038]
[1750675264237,7.25755729,2250.4,2250.2,1.336038]
[1750675264440,7.25755729,2250.4,2249.5,10.0]
[1750675264674,7.25755729,2250.4,2249.7,11.336229]
[1750675264890,7.202,2250.4,2249.7,11.336229]
[1750675265040,7.202,2250.4,2249.7,1.336229]
[1750675265387,0.6158,2250.3,2249.7,1.336229]
[1750675265675,1.90455939,2250.2,2249.7,1.336229]
[1750675265868,9.055,2250.1,2249.7,8.39025753]
[1750675267272,9.055,2250.1,2249.8,0.04444751]
[1750675267451,9.055,2250.1,2249.7,8.39025753]
[1750675267647,0.0555547,2250.0,2249.7,1.336229]
[1750675271161,0.6158,2249.9,2249.1,0.8313]
[1750675271355,0.6158,2249.9,2249.6,1.33646]
[1750675271356,0.05556905,2249.8,2249.6,1.33646]
[1750675272087,7.10959758,2249.8,2248.9,0.8315]
[1750675272291,7.60402853,2249.6,2248.7,0.8315]
[1750675272462,0.6158,2249.4,2249.1,1.336764]
[1750675272794,0.05558333,2249.3,2248.5,0.8011]
[1750675273298,0.05558333,2249.3,2248.4,0.4455798]
[1750675273299,0.6158,2249.2,2248.4,0.4455798]
[1750675273465,0.05558486,2249.1,2248.6,1.336842]
[1750675273662,9.066,2249.0,2248.6,1.336842]
[1750675282677,0.6158,2249.2,2248.9,7.05402853]
[1750675282904,1.851,2249.1,2248.9,7.05402853]
[1750675283404,1.851,2249.1,2249.0,1.336711]
[1750675284809,2.74093146,2249.1,2249.0,1.336711]
[1750675285011,2.4668,2249.1,2249.0,1.336711]
[1750675285380,2.4668,2249.1,2248.1,0.7949]
[1750675285581,2.4668,2249.1,2248.3,10.0]
[1750675285780,2.4668,2249.1,2248.8,1.336711]
[1750675286005,0.24668,2249.0,2248.3,10.0]
[1750675286203,0.0555918,2248.9,2248.4,1.337014]
[1750675286383,9.1285918,2248.9,2248.4,8.39104253]
[1750675286585,9.073,2248.9,2248.4,8.39104253]
[1750675287578,9.073,2248.9,2248.4,12.83862999]
[1750675287779,1.855,2248.8,2248.6,7.05402853]
[1750675288920,0.6158,2249.3,2248.6,11.50122501]
[1750675289231,0.6158,2249.3,2248.5,0.8128]
[1750675289232,7.218,2249.1,2248.8,7.05402853]
[1750675289736,7.218,2249.1,2248.5,0.8128]
[1750675289737,7.27358089,2249.1,2248.5,0.8128]
[1750675289920,0.6158,2249.0,2248.4,1.337014]
[1750675290123,0.05558435,2248.9,2248.4,1.337014]
[1750675290322,0.6158,2248.8,2248.4,1.337014]
[1750675290635,1.91059179,2248.7,2248.4,1.337014]
[1750675290831,0.25263918,2248.6,2248.4,1.337014]
[1750675292141,0.25263918,2248.6,2248.1,10.44515683]
[1750675292436,0.25263918,2248.6,2248.1,11.78218883]
[1750675292739,0.25263918,2248.6,2248.1,11.337032]
[1750675292899,7.90439552,2248.5,2248.1,1.337032]
[1750675293300,7.90439552,2248.5,2248.0,0.2250348]
[1750675293524,0.6158,2248.4,2248.0,0.2250348]
[1750675293735,7.28859552,2248.5,2248.0,0.2250348]
[1750675293736,0.05560509,2248.3,2248.0,0.2250348]
[1750675293942,0.6158,2248.1,2248.0,0.2250348]
[1750675294125,0.67141513,2248.1,2248.0,0.2250348]
[1750675294502,0.92405664,2248.1,2248.0,0.2250348]
[1750675296644,9.96644151,2248.1,2248.0,0.2250348]
[1750675300644,0.86844151,2248.1,2248.0,0.2250348]
[1750675300950,9.7218,2248.1,2248.0,0.2250348]
[1750675303566,0.6158,2248.1,2248.0,0.2250348]
[1750675303741,9.7268,2248.1,2248.0,0.2250348]
[1750675304669,10.2768,2248.1,2248.0,0.2250348]
[1750675306428,0.55,2248.0,2247.1,1.337724]
[1750675306666,0.55,2248.0,2245.7,0.2250348]
[1750675306667,10.55,2247.8,2246.6,0.7912]
[1750675306840,9.143,2247.7,2246.6,15.28685558]
[1750675307041,9.143,2247.6,2246.6,10.7912]
[1750675307370,1.9116294,2247.5,2246.6,2.129121]
[1750675307550,2.3023294,2247.5,2246.6,6.58019597]
[1750675307728,0.3907,2247.5,2246.8,14.45062878]
[1750675307929,9.143,2247.4,2247.0,0.7857]
[1750675308128,9.144,2247.3,2247.0,0.7857]
[1750675308565,9.144,2247.3,2247.1,1.337795]
[1750675309067,1.856,2247.3,2247.2,0.7528]
[1750675312339,0.55,2248.2,2247.1,1.3822909]
[1750675312340,0.3907,2247.4,2247.1,1.337795]
[1750675312670,1.856,2247.3,2246.9,0.8072]
[1750675312855,0.3907,2247.7,2247.2,10.0]
[1750675313170,1.856,2247.6,2247.3,0.8072]
[1750675313361,1.856,2247.5,2247.3,0.8072]
[1750675313757,10.0,2248.3,2247.3,0.8072]
[1750675314073,10.0,2248.3,2247.4,10.0]
[1750675314074,9.165,2248.2,2247.4,10.0]
[1750675314293,9.165,2248.2,2247.3,0.8072]
[1750675314497,9.165,2248.2,2247.3,0.85169163]
[1750675315162,9.165,2248.2,2247.4,10.0]
[1750675315692,0.05561188,2248.1,2247.3,0.8072]
[1750675317088,9.165,2248.2,2247.3,0.8072]
[1750675317277,0.3907,2248.1,2247.3,0.8072]
[1750675318953,9.165,2248.2,2247.5,10.0]
[1750675319187,0.44630916,2248.1,2247.2,0.7765]
[1750675319695,0.44630916,2248.1,2247.2,2.114034]
[1750675320299,0.44630916,2248.1,2247.2,1.337534]
[1750675320600,9.165,2248.2,2247.0,0.831]
[1750675320601,0.3907,2247.9,2247.0,0.831]
[1750675320761,0.3907,2247.7,2247.1,1.337534]
[1750675321091,9.213,2247.6,2246.8,0.831]
[1750675321300,9.213,2247.6,2246.8,5.32609113]
[1750675321467,9.214,2247.5,2246.9,10.0]
[1750675321666,9.214,2247.5,2247.0,0.7853]
[1750675322595,9.214,2247.5,2246.7,4.45086407]
[1750675322596,0.3907,2247.4,2246.7,0.7823]
[1750675322758,0.44632217,2247.4,2246.7,2.120251]
[1750675322957,0.44632217,2247.4,2246.7,1.337951]
[1750675323157,0.44632217,2247.4,2246.5,0.8251]
[1750675323398,0.44632217,2247.4,2246.5,2.163176]
[1750675323697,0.3907,2247.2,2246.3,0.7889]
[1750675324098,0.3907,2247.2,2246.3,2.127131]
[1750675324299,0.4463425,2247.1,2246.3,1.338231]
[1750675324497,1.906,2247.0,2246.3,1.338231]
[1750675324883,0.0556425,2246.9,2246.3,1.338231]
[1750675325089,7.313,2246.8,2246.4,0.04451401]
[1750675325302,0.3907,2247.0,2246.4,0.7977]
[1750675325477,11.0837,2247.3,2246.4,5.29376615]
[1750675325667,9.27763334,2247.2,2246.5,14.80462001]
[1750675325861,9.222,2247.2,2246.5,14.80462001]
[1750675326093,1.906,2247.1,2246.5,14.80462001]
[1750675326294,1.906,2247.1,2246.4,12.04662432]
[1750675326295,0.05563013,2247.0,2246.4,0.7977]
[1750675326772,9.223,2246.9,2246.4,0.7977]
[1750675327258,0.0556387,2246.8,2246.3,1.338231]
[1750675327606,0.0556387,2246.8,2246.2,0.8258]
[1750675327803,0.0556387,2246.8,2246.2,2.164091]
[1750675328976,0.0556387,2246.8,2246.2,1.338291]
[1750675330587,9.6137,2246.9,2246.2,1.338291]
[1750675330889,0.05564507,2246.8,2246.2,1.338291]
[1750675331265,0.3907,2246.7,2246.0,14.45224974]
[1750675332797,12.10168211,2245.6,2244.3,0.7715]
[1750675333116,12.046,2245.6,2244.3,3.35696525]
[1750675333279,12.046,2245.6,2244.4,0.01115602]
[1750675333911,2.046,2245.6,2244.3,3.35696525]
[1750675334113,0.22138164,2245.5,2244.3,3.35696525]
[1750675334410,0.1657,2245.5,2244.4,0.01115564]
[1750675334714,7.572,2245.4,2244.4,11.42687797]
[1750675334876,0.05568039,2245.3,2244.4,11.41572233]
[1750675335074,0.05568039,2245.3,2244.3,3.35696525]
[1750675335075,10.05568039,2245.3,2244.3,2.73072676]
[1750675335309,0.1657,2245.2,2244.0,0.8047]
[1750675335509,0.05569059,2245.1,2244.1,10.0]
[1750675335804,0.05569059,2245.1,2244.0,10.8047]
[1750675335994,0.05569059,2245.1,2244.0,0.8047]
[1750675336205,0.05569059,2245.1,2244.1,10.0]
[1750675336712,0.05569059,2245.1,2244.0,11.43093849]
[1750675337218,7.566,2245.0,2244.0,11.43093849]
[1750675337382,7.566,2245.0,2244.1,0.01117502]
[1750675337886,7.566,2245.0,2244.2,10.35331219]
[1750675338188,7.566,2245.0,2243.7,4.45688267]
[1750675338189,0.45113149,2245.0,2244.3,0.01117214]
[1750675338403,0.1607,2244.9,2244.1,10.35331219]
[1750675338597,0.1607,2244.9,2244.4,10.35331219]
[1750675339327,0.1607,2244.9,2244.5,4.45526994]
[1750675339533,2.2077,2245.3,2244.7,10.35331219]
[1750675339718,0.1607,2245.3,2244.7,10.35331219]
[1750675339922,0.1607,2245.3,2244.7,14.80809507]
[1750675340123,0.1607,2245.6,2244.8,4.4658823]
[1750675340332,0.1607,2245.6,2244.8,4.46576152]
[1750675340647,0.1607,2245.6,2245.0,10.35331219]
[1750675340831,0.1607,2245.6,2245.1,0.01112876]
[1750675341023,0.1607,2245.6,2245.0,14.80760052]
[1750675341413,0.05566827,2246.0,2245.1,10.7732]
[1750675341608,0.1607,2246.0,2245.0,2.047]
[1750675341943,0.7107,2245.9,2245.0,2.047]
[1750675342239,0.7107,2245.9,2244.8,10.0]
[1750675342440,0.05567672,2245.8,2244.8,10.0]
[1750675342640,0.05567672,2245.8,2244.8,12.047]
[1750675342846,0.05567672,2245.8,2244.8,18.65359023]
[1750675343024,9.66767672,2245.8,2244.8,18.65359023]
[1750675343220,9.66767672,2245.8,2244.8,16.60659023]
[1750675343221,9.612,2245.8,2244.8,16.60659023]
[1750675343425,0.0556767,2245.7,2244.8,6.60658375]
[1750675343810,9.612,2245.8,2244.8,2.16299122]
[1750675344015,0.05567421,2245.7,2244.8,2.15185058]
[1750675344636,0.09350765,2245.6,2244.8,2.15185058]
[1750675344950,0.0556767,2245.5,2244.8,2.15185058]
[1750675345152,0.05567669,2245.7,2244.8,2.15185058]
[1750675345450,9.65967669,2245.7,2244.8,2.15185058]
[1750675345628,9.604,2245.7,2244.8,6.61772723]
[1750675345952,9.603,2245.7,2244.8,2.16299122]
[1750675346154,9.603,2245.7,2244.8,6.61772638]
[1750675346949,0.05567669,2245.6,2244.9,1.96025219]
[1750675348655,9.603,2245.7,2244.9,1.96025219]
[1750675349033,9.603,2245.7,2245.0,4.45433359]
[1750675349240,0.05567396,2245.6,2244.9,6.41468562]
[1750675349626,0.05567396,2245.6,2245.0,4.45433891]
[1750675350026,9.603,2245.7,2245.2,4.45391788]
[1750675350752,0.05566921,2245.6,2245.1,4.45406802]
[1750675350956,0.05566921,2245.6,2245.0,16.10960199]
[1750675351258,0.05566921,2245.6,2245.0,20.56378221]
[1750675351438,0.05566921,2245.6,2244.9,6.41471901]
[1750675351641,0.05566921,2245.6,2244.9,6.41469609]
[1750675351849,0.05566921,2245.6,2245.0,4.45416187]
[1750675352050,9.603,2245.7,2245.1,4.45414027]
[1750675352291,9.603,2245.7,2245.0,4.46536145]
[1750675352846,9.603,2245.7,2245.1,4.45413141]
[1750675353180,9.603,2245.7,2245.1,4.45411563]
[1750675353565,9.603,2245.7,2245.0,5.90243695]
[1750675353880,9.603,2245.7,2245.0,5.90244018]
[1750675354065,2.047,2245.7,2245.2,4.45375984]
[1750675354265,9.577,2245.7,2245.0,1.43708689]
[1750675354470,0.05567123,2245.6,2245.0,5.8913462]
[1750675354763,0.05567123,2245.6,2245.0,1.43708689]
[1750675354958,0.05567123,2245.6,2244.9,16.76800687]
[1750675355142,0.1607,2245.5,2244.9,1.96025219]
[1750675355346,0.1607,2245.5,2244.9,6.4146994]
[1750675355590,7.6867,2245.5,2244.9,12.31356438]
[1750675355767,7.6867,2245.5,2244.9,16.76799255]
[1750675355768,0.05567171,2245.4,2244.9,16.76799255]
[1750675356144,0.05567171,2245.4,2245.0,4.45420026]
[1750675356338,7.6867,2245.5,2245.0,4.45420026]
[1750675356339,7.6867,2245.5,2245.0,6.58762541]
[1750675356776,7.6867,2245.5,2245.0,2.13340045]
[1750675357154,0.0556737,2245.4,2244.9,12.31356438]
[1750675357361,0.0556737,2245.4,2244.9,1.96025219]
[1750675357673,0.0556737,2245.4,2244.9,11.96025219]
[1750675358482,0.0556737,2245.4,2244.9,16.41477971]
[1750675358664,7.6867,2245.5,2245.0,4.45433915]
[1750675358857,7.6867,2245.5,2245.1,10.0]
[1750675359258,7.6867,2245.5,2245.0,4.45429704]
[1750675359474,7.6867,2245.5,2245.0,14.45429704]
[1750675359796,7.6867,2245.5,2245.2,10.0]
[1750675360971,10.695,2246.2,2245.4,4.45344152]
[1750675360972,0.1607,2246.0,2245.4,4.45344152]
[1750675361295,0.1607,2246.0,2245.6,10.0]
[1750675361497,0.1607,2246.0,2245.4,4.45343535]
[1750675361498,0.1607,2246.0,2245.4,14.45344153]
[1750675361685,0.21636247,2246.0,2245.4,10.0]
[1750675362282,0.21636247,2246.0,2245.4,14.45351867]
[1750675362487,0.21636247,2246.0,2245.4,10.0]
[1750675363201,0.21636247,2246.0,2245.3,4.45367096]
[1750675363202,0.1607,2245.9,2245.3,10.0]
[1750675363398,0.05566927,2245.8,2245.2,10.0]
[1750675364108,0.05566927,2245.8,2245.1,10.0]
[1750675364276,0.1607,2245.7,2245.1,10.0]
[1750675364468,0.05567391,2245.6,2245.1,10.0]
[1750675364681,7.55967391,2245.6,2244.9,11.96025219]
[1750675365010,9.58267391,2245.6,2244.9,11.96025219]
[1750675365314,9.527,2245.6,2244.9,11.96025219]
[1750675365603,0.1607,2245.4,2244.9,10.0]
[1750675365808,0.1607,2245.4,2244.9,14.45452793]
[1750675367113,0.1607,2245.4,2244.8,14.45463143]
[1750675367410,0.1607,2245.4,2244.9,4.4545111]
[1750675368213,0.1607,2245.4,2244.8,4.4546633]
[1750675368380,0.1607,2245.4,2244.9,4.45444608]
[1750675369691,0.1607,2245.4,2244.8,4.45462384]
[1750675369888,0.1607,2245.4,2244.9,4.45451456]
[1750675370182,0.1607,2245.4,2244.8,4.45467001]
[1750675370586,0.1607,2245.4,2244.9,4.4545332]
[1750675370820,0.1607,2245.4,2244.9,4.45451775]
[1750675371194,0.1607,2245.4,2244.8,4.45473984]
[1750675372325,0.1607,2245.4,2244.8,8.90933037]
[1750675372627,0.1607,2245.4,2244.9,4.45440663]
[1750675373624,0.1607,2245.4,2245.1,10.0]
[1750675373832,0.1607,2245.4,2244.9,10.0]
[1750675374028,0.1607,2245.4,2245.0,4.45420397]
[1750675374405,0.1607,2245.4,2245.2,10.0]
[1750675374605,0.1607,2245.4,2245.1,4.45413974]
[1750675374928,0.1607,2245.4,2245.2,10.0]
[1750675375089,0.1607,2245.4,2244.9,4.45447415]
[1750675375090,0.1607,2245.4,2245.0,4.45421467]
[1750675375293,0.1607,2245.4,2245.1,14.45407064]
[1750675375697,0.1607,2245.4,2245.2,4.45393869]
[1750675375891,0.1607,2245.4,2245.1,4.45404165]
[1750675377029,0.1607,2245.4,2245.0,14.45423995]
[1750675377530,0.1607,2245.4,2245.1,4.4541327]
[1750675377997,0.1607,2245.4,2245.0,14.45422595]
[1750675378624,0.1607,2245.2,2244.4,10.35331219]
[1750675378826,0.1607,2245.2,2244.8,4.45462177]
[1750675379029,0.1607,2245.2,2244.7,14.80815099]
[1750675379225,0.1607,2245.2,2244.9,4.45445899]
[1750675379526,0.1607,2245.2,2244.9,10.0]
[1750675380828,0.1607,2245.2,2244.8,10.0]
[1750675381033,0.1607,2245.2,2244.6,10.0]
[1750675381540,0.1607,2245.2,2244.7,10.36446895]
[1750675381702,0.1607,2245.2,2244.7,10.0]
[1750675381897,0.1607,2245.2,2244.8,4.45464762]
[1750675382098,0.1607,2245.2,2244.4,4.45543538]
[1750675382338,0.1607,2245.2,2244.5,14.46642578]
[1750675382539,0.1607,2245.2,2244.6,10.0]
[1750675382735,0.1607,2245.2,2244.6,14.45508605]
[1750675382903,0.1607,2245.2,2244.6,10.0]
[1750675383099,0.05568159,2245.1,2244.4,10.0]
[1750675383300,0.1607,2245.0,2244.4,14.45553286]
[1750675383503,0.21638731,2245.0,2244.4,14.45553286]
[1750675384342,0.21638731,2245.0,2244.4,10.0]
[1750675384560,0.1607,2245.0,2244.6,20.35331219]
[1750675384707,0.1607,2245.0,2244.6,24.80841484]
[1750675385039,2.023,2245.1,2244.9,14.45442758]
[1750675385406,7.476,2245.4,2245.1,10.0]
[1750675385644,7.476,2245.4,2245.0,10.0]
[1750675385645,7.53167241,2245.4,2245.0,10.0]
[1750675386335,7.53167241,2245.4,2245.0,17.0780089]
[1750675388345,0.05567241,2245.4,2244.8,10.0]
[1750675388536,0.05567241,2245.4,2245.0,10.0]
[1750675388914,0.05567241,2245.4,2244.8,24.83621795]
[1750675389481,0.05567241,2245.4,2244.8,20.38157931]
[1750675389653,0.05567241,2245.4,2244.9,10.0]
[1750675389981,0.05567241,2245.4,2244.9,14.45446706]
[1750675390765,0.05567241,2245.4,2244.8,14.83619476]
[1750675390969,0.05567241,2245.4,2244.9,4.4544956]
[1750675391148,0.05567241,2245.4,2244.8,24.8361798]
[1750675391553,2.1837,2245.5,2244.5,10.0]
[1750675391554,0.1607,2245.3,2244.5,10.0]
[1750675391755,0.0556878,2245.2,2244.6,4.45512662]
[1750675392079,0.0556878,2245.2,2244.5,10.0]
[1750675392386,0.0556878,2245.2,2244.5,14.45530316]
[1750675392752,0.0556878,2245.2,2244.5,10.0]
[1750675393054,0.1607,2245.1,2244.4,10.0]
[1750675393586,0.1607,2244.9,2243.6,11.21317931]
[1750675393788,0.1607,2244.7,2243.6,13.25954836]
[1750675393986,0.05570467,2244.6,2243.6,17.71666012]
[1750675394185,1.986,2244.5,2243.6,2.87796905]
[1750675394389,0.21640616,2244.4,2243.6,1.58956765]
[1750675394590,0.21640616,2244.4,2243.7,10.0]
[1750675394776,0.05570609,2244.4,2243.7,11.21961818]
[1750675394976,0.1607,2244.3,2243.5,0.2250348]
[1750675395169,0.05571088,2244.2,2243.5,10.2250348]
[1750675395498,0.1607,2244.3,2243.5,10.2250348]
[1750675395499,0.1607,2244.3,2243.8,10.0]
[1750675396084,2.1467,2244.3,2243.8,10.0]
[1750675396699,2.1467,2244.3,2243.8,14.45671075]
[1750675396999,2.1467,2244.3,2243.5,10.2250348]
[1750675397200,0.05570632,2244.2,2243.5,21.62961759]
[1750675397410,2.1467,2244.3,2243.5,26.08686996]
[1750675397970,0.05571111,2244.2,2243.5,20.60661411]
[1750675398206,0.1607,2244.1,2243.5,0.2250348]
[1750675398394,0.05571334,2244.0,2243.5,0.2250348]
[1750675399910,0.1607,2244.1,2243.5,0.2250348]
[1750675400078,0.1607,2244.0,2243.5,0.2250348]
[1750675400277,0.1607,2243.8,2243.5,0.2250348]
[1750675400507,2.1477,2243.8,2243.5,0.2250348]
[1750675400995,0.05571652,2243.7,2243.5,0.2250348]
[1750675401703,0.1607,2243.8,2243.6,10.0]
[1750675402208,0.1607,2243.8,2243.5,4.68221906]
[1750675402209,0.21641352,2243.8,2243.5,0.2250348]
[1750675402502,0.1607,2243.8,2243.5,0.2250348]
[1750675403106,0.05571878,2243.7,2243.5,0.2250348]
[1750675405807,0.1607,2243.6,2243.5,0.2250348]
[1750675406983,2.1477,2243.6,2243.5,0.2250348]
[1750675407304,2.20342628,2243.6,2243.5,0.2250348]
[1750675407680,2.20342553,2243.6,2243.5,0.2250348]
[1750675409008,1.987,2243.6,2243.5,0.2250348]
[1750675409176,7.6407,2243.8,2243.5,0.2250348]
[1750675409177,0.1607,2243.8,2243.5,0.2250348]
[1750675409381,0.21641749,2244.1,2243.5,10.2250348]
[1750675409613,0.1607,2244.1,2243.5,16.74343957]
[1750675409805,0.1607,2244.1,2243.6,4.45709043]
[1750675410187,0.2164111,2244.1,2243.6,0.7976]
[1750675410404,0.2164111,2244.1,2243.6,5.25468707]
[1750675410589,0.1607,2244.1,2243.6,5.26584786]
[1750675410908,0.1607,2244.1,2243.8,10.0]
[1750675411224,0.1607,2244.1,2243.5,0.2250348]
[1750675411225,0.05570691,2244.0,2243.5,0.2250348]
[1750675411390,0.1607,2243.9,2243.5,0.2250348]
[1750675415816,1.987,2244.2,2243.5,0.2250348]
[1750675415817,0.1607,2243.7,2243.5,0.2250348]
[1750675416018,2.19218647,2243.6,2243.5,0.2250348]
[1750675416317,2.20342125,2243.6,2243.5,0.2250348]
[1750675416501,10.711,2244.7,2243.5,0.2250348]
[1750675416687,0.1607,2244.5,2243.5,0.2250348]
[1750675416878,0.55,2244.2,2243.5,0.2250348]
[1750675417078,0.1607,2244.0,2243.5,0.2250348]
[1750675417316,0.1607,2243.8,2243.5,0.2250348]
[1750675417825,1.987,2243.7,2243.5,0.2250348]
[1750675418124,10.711,2244.7,2243.5,0.2250348]
[1750675418125,2.1477,2244.1,2243.5,11.0475348]
[1750675418290,0.1607,2244.1,2243.7,10.0]
[1750675418483,9.517,2244.2,2243.7,10.0]
[1750675418681,0.05570774,2244.1,2243.6,10.0]
[1750675419482,9.517,2244.2,2243.6,10.0]
[1750675420718,0.21640998,2244.1,2243.5,0.2250348]
[1750675420917,0.1607,2244.1,2243.5,0.2250348]
[1750675421288,0.1607,2244.1,2243.5,1.70500082]
[1750675421492,0.1607,2243.9,2243.5,0.2250348]
[1750675421711,2.042,2243.8,2243.5,0.2250348]
[1750675422291,0.05571834,2243.7,2243.5,0.2250348]
[1750675422713,2.042,2243.8,2243.5,0.2250348]
[1750675423237,7.7067,2243.9,2243.5,0.2250348]
[1750675423238,0.1607,2243.9,2243.5,0.2250348]
[1750675423538,0.0557174,2243.8,2243.5,0.2250348]
[1750675425625,0.1607,2243.9,2243.5,0.2250348]
[1750675427241,2.042,2244.0,2243.5,0.2250348]
[1750675427442,2.042,2244.0,2243.6,0.0368]
[1750675427964,2.042,2244.0,2243.7,0.0368]
[1750675428105,2.042,2244.2,2243.7,0.0368]
[1750675428455,0.05570792,2244.1,2243.7,0.0368]
[1750675428619,0.1607,2244.0,2243.5,0.2250348]
[1750675429143,2.2027,2244.2,2243.6,0.0368]
[1750675429324,2.2027,2244.2,2243.6,10.0368]
[1750675429524,0.05571039,2244.1,2243.7,0.0368]
[1750675431546,0.05571039,2244.1,2243.5,1.0014348]
[1750675431748,0.05571039,2244.1,2243.7,0.0368]
[1750675435551,2.042,2244.2,2243.8,10.7861]
[1750675436247,2.042,2244.2,2243.8,0.7861]
[1750675436825,0.05570361,2244.1,2243.8,0.7861]
[1750675437738,0.21640361,2244.1,2243.6,10.0]
[1750675439922,0.1607,2244.1,2243.6,10.0]
[1750675440451,0.21641026,2244.1,2243.6,10.0]
[1750675442836,0.21641026,2244.1,2243.8,0.0368]
[1750675443554,0.21641026,2244.1,2243.5,0.2250348]
[1750675443755,0.1607,2244.0,2243.5,0.2250348]
[1750675443959,0.05571652,2243.9,2243.5,0.2618348]
[1750675444261,0.1607,2243.7,2243.5,0.2250348]
[1750675444569,0.2164206,2243.6,2243.5,0.2250348]
[1750675444936,0.1607,2243.6,2243.5,0.2250348]
[1750675445762,9.7007,2243.6,2243.5,0.2250348]
[1750675445964,0.1607,2244.0,2243.6,0.0368]
[1750675446280,7.71441036,2244.0,2243.6,0.0368]
[1750675446854,7.6587,2244.0,2243.6,0.0368]
[1750675447273,7.71441035,2244.0,2243.6,0.0368]
[1750675447472,7.71441035,2244.0,2243.5,0.2250348]
[1750675448056,7.6587,2244.0,2243.5,0.23624772]
[1750675448258,7.6587,2244.0,2243.5,0.2250348]
[1750675448573,0.05571774,2243.9,2243.5,0.2250348]
[1750675449279,7.498,2244.0,2243.5,0.2250348]
[1750675449505,0.1607,2243.9,2243.5,0.2250348]
[1750675450565,9.7067,2243.9,2243.5,0.2250348]
[1750675450786,0.05571301,2243.8,2243.5,0.2250348]
[1750675452062,0.05571301,2243.8,2243.5,1.0455348]
[1750675452553,0.05571301,2243.8,2243.5,0.2250348]
[1750675453057,0.1607,2243.7,2243.5,0.2250348]
[1750675453688,0.05572482,2243.6,2243.5,0.2250348]
[1750675454496,0.1607,2243.7,2243.5,0.2250348]
[1750675454879,0.21642535,2243.7,2243.5,0.2250348]
[1750675455081,0.05572535,2243.7,2243.5,0.2250348]
[1750675455282,0.1607,2243.6,2243.5,0.2250348]
[1750675455474,0.7107,2243.6,2243.5,0.2250348]
[1750675460506,11.4237,2243.6,2243.5,0.2250348]
[1750675460870,20.9277,2243.6,2243.5,0.2250348]
[1750675461705,11.4237,2243.6,2243.5,0.2250348]
[1750675461901,20.9407,2243.6,2243.5,0.2250348]
[1750675463695,20.9417,2243.6,2243.5,0.2250348]
[1750675464085,20.3917,2243.6,2243.5,0.2250348]
[1750675464410,20.9417,2243.6,2243.5,0.2250348]
[1750675464576,20.9357,2243.6,2243.5,0.2250348]
[1750675465984,11.4237,2243.6,2243.5,0.2250348]
[1750675466188,20.9357,2243.6,2243.5,0.2250348]
[1750675466384,20.3857,2243.6,2243.5,0.2250348]
[1750675466918,20.22,2243.6,2243.5,0.2618348]
[1750675468006,18.21,2243.6,2243.5,0.2618348]
[1750675469378,18.21,2243.6,2243.5,0.2250348]
[1750675469590,18.3707,2243.6,2243.5,0.2250348]
[1750675469912,18.21,2243.6,2243.5,0.2250348]
[1750675473179,10.713,2243.6,2243.5,1.32350828]
[1750675473385,18.198,2243.6,2243.5,0.2250348]
[1750675473616,2.014,2243.7,2243.5,0.2250348]
[1750675473777,7.485,2243.6,2243.5,0.2250348]
[1750675474216,7.54072138,2243.6,2243.5,0.2250348]
[1750675474711,8.09072138,2243.6,2243.5,0.2250348]
[1750675474914,7.54672138,2243.6,2243.5,0.2250348]
[1750675476388,0.1607,2243.9,2243.5,0.2250348]
[1750675476589,0.05572714,2243.6,2243.5,0.2250348]
[1750675476930,2.06972714,2243.6,2243.5,0.2250348]
[1750675479027,2.78042714,2243.6,2243.5,0.2250348]
[1750675490135,2.7247,2243.6,2243.5,0.2250348]
[1750675490808,0.225035,2244.3,2243.5,0.2250348]
[1750675491009,15.413,2244.5,2243.5,0.9771348]
[1750675491010,9.6207,2244.2,2243.5,0.9771348]
[1750675491224,7.67841736,2244.1,2243.5,0.9771348]
[1750675491639,0.55,2244.0,2243.5,0.9771348]
[1750675492150,0.05572153,2243.9,2243.5,0.9771348]
[1750675492842,0.05572153,2243.9,2243.6,0.0368]
[1750675493202,7.6227,2244.1,2243.6,0.0368]
[1750675493507,0.05571833,2244.0,2243.6,0.0368]
[1750675493731,0.05571812,2244.0,2243.6,0.0368]
[1750675494129,2.1607,2244.2,2243.7,0.8251]
[1750675494130,7.462,2243.9,2243.7,0.8251]
[1750675494329,7.462,2243.9,2243.8,0.0368]
[1750675496637,9.457,2243.9,2243.8,0.0368]
[1750675498039,9.455,2243.9,2243.8,0.8012]
[1750675498246,9.455,2243.9,2243.8,1.68802224]
[1750675499044,2.0,2243.9,2243.8,1.68802224]
[1750675499229,9.453,2243.9,2243.8,1.68802224]
[1750675499410,9.453,2243.9,2243.8,0.8012]
[1750675500544,10.714,2244.5,2243.8,0.7644]
[1750675500841,2.0,2244.1,2243.8,0.7644]
[1750675501007,0.05570928,2244.0,2243.8,0.7644]
[1750675501410,7.449,2243.9,2243.8,0.7644]
[1750675502226,2.0,2244.1,2243.9,0.774]
[1750675502420,7.446,2244.0,2243.9,0.774]